bitfinex/quotes_ETHUSD_20220219
["timestamp","ask_amount","ask_price","bid_price","bid_amount"]
[1645232709405,0.0119325,2816.3,2816.1,1.88813]
[1645232709605,0.0119325,2816.3,2816.1,1.48813]
[1645232709804,0.0119325,2816.3,2816.1,2.48813]
[1645232710004,0.0119325,2816.3,2816.2,14.39]
[1645232710407,0.0119325,2816.3,2816.2,15.39]
[1645232710753,0.0119325,2816.3,2816.2,16.27783]
[1645232711951,0.0119325,2816.3,2816.2,14.69]
[1645232712154,0.0119325,2816.3,2816.2,15.69]
[1645232712752,0.0119325,2816.3,2816.2,12.19]
[1645232712949,0.0119325,2816.3,2816.1,1.18813]
[1645232713150,0.0119325,2816.3,2816.1,0.88813]
[1645232714058,0.01433745,2816.3,2816.1,0.88813]
[1645232714904,0.0119325,2816.3,2816.1,0.88813]
[1645232715104,0.0119325,2816.3,2815.9,1.77612]
[1645232715308,0.0141402,2816.3,2815.9,1.77612]
[1645232715709,0.98869746,2816.3,2815.9,1.77612]
[1645232715909,0.98869746,2816.3,2815.8,0.00220815]
[1645232716104,0.98869746,2816.3,2815.4,1.01664384]
[1645232716105,0.1774,2816.2,2815.4,1.01664384]
[1645232716505,0.17960773,2816.2,2815.8,0.00220811]
[1645232716905,0.00220773,2816.2,2815.8,0.00220811]
[1645232717103,1.12277763,2816.2,2815.8,0.00220811]
[1645232717308,2.3089499,2816.2,2815.3,1.77656]
[1645232717504,2.3089499,2816.2,2815.2,0.13819997]
[1645232717505,0.1774,2816.1,2815.2,0.13819997]
[1645232717708,0.17960776,2816.1,2815.8,0.00220806]
[1645232718367,0.88844,2816.0,2815.8,0.00220806]
[1645232718552,0.88844,2816.0,2814.8,2.8287]
[1645232718553,0.1774,2815.9,2815.2,0.8884]
[1645232718749,0.1774,2815.9,2815.8,0.00223689]
[1645232719255,0.4774,2815.9,2815.8,0.00223689]
[1645232719650,0.4774,2815.9,2814.8,4.60559]
[1645232719651,1.4774,2815.9,2814.8,4.60559]
[1645232719852,1.4774,2815.9,2814.8,1.77689]
[1645232719853,1.7774,2815.9,2814.8,1.77689]
[1645232720054,1.7774,2815.9,2815.7,0.00223688]
[1645232720055,0.4774,2815.9,2815.7,0.00223688]
[1645232720254,0.7774,2815.9,2815.7,0.00223688]
[1645232720454,0.1774,2815.9,2815.7,0.00223688]
[1645232720658,0.4774,2815.9,2815.7,0.00223688]
[1645232720857,0.4774,2815.9,2814.9,1.11645118]
[1645232720858,0.1774,2815.9,2814.9,1.11645118]
[1645232721055,0.7774,2815.9,2814.9,1.11645118]
[1645232721255,0.1774,2815.9,2815.7,0.0022369]
[1645232721862,0.88841,2815.8,2815.7,0.0022369]
[1645232722101,0.88841,2815.8,2814.9,1.11645118]
[1645232722102,0.8884803,2815.7,2814.9,1.11645118]
[1645232723401,1.7769503,2815.7,2814.9,1.11645118]
[1645232723599,0.88844,2815.6,2815.2,0.00223284]
[1645232724505,0.88844,2815.6,2814.7,4.38841]
[1645232724700,0.88844,2815.6,2815.3,0.00223281]
[1645232724900,1.7767818,2815.8,2815.3,0.00223281]
[1645232725751,1.7767818,2815.8,2814.9,0.89406208]
[1645232725946,1.7767818,2815.8,2815.4,0.00223339]
[1645232726144,1.10003717,2815.7,2815.4,0.00223339]
[1645232726744,2.87702717,2815.7,2815.4,0.00223339]
[1645232726949,2.87702717,2815.7,2814.5,0.1776]
[1645232726950,5.95413717,2815.7,2814.5,0.1776]
[1645232727151,5.95413717,2815.7,2814.4,0.00072752]
[1645232727152,0.88873,2815.3,2814.4,0.00072752]
[1645232727546,0.85002175,2815.2,2814.4,0.00072752]
[1645232727861,0.85002175,2815.2,2814.0,0.1776]
[1645232727862,5.0,2814.9,2814.0,0.1776]
[1645232728051,5.0,2814.9,2813.1,10.9901]
[1645232728052,1.7782,2814.6,2813.1,10.9901]
[1645232728248,1.9558,2814.6,2813.1,10.8125]
[1645232728445,0.3,2814.5,2813.1,10.8125]
[1645232728648,2.9558,2814.6,2813.2,3.5]
[1645232728857,0.1776,2815.0,2813.8,0.97535434]
[1645232729048,0.88879,2814.7,2813.8,0.97535434]
[1645232729496,0.1776,2815.0,2813.2,3.5]
[1645232729497,0.88884,2814.4,2813.2,3.5]
[1645232729702,0.88884,2814.4,2814.3,0.00223533]
[1645232730398,1.79284002,2814.4,2814.3,0.00223533]
[1645232730599,0.888966,2814.1,2813.3,0.94258668]
[1645232730998,0.88895,2814.0,2813.3,0.94258668]
[1645232731801,4.8190135,2814.9,2813.3,1.83148668]
[1645232732001,0.1776,2814.6,2813.5,0.30223557]
[1645232732203,1.06637,2814.6,2813.5,0.30223557]
[1645232732399,0.88877,2814.6,2813.5,0.00223557]
[1645232732798,1.77761,2814.6,2813.8,1.14691046]
[1645232733003,0.8888489,2814.4,2813.8,1.44691046]
[1645232733258,0.8888489,2814.4,2813.9,0.00223524]
[1645232733450,1.7776989,2814.4,2813.9,0.00223524]
[1645232734250,0.8888489,2814.4,2813.1,1.77773]
[1645232734451,0.88892,2814.3,2814.0,0.0022352]
[1645232734649,0.8888489,2814.4,2814.0,0.0022352]
[1645232734854,2.3163852,2814.7,2814.0,0.0022352]
[1645232735049,1.0663852,2814.7,2814.0,0.0022352]
[1645232735250,0.88884,2814.6,2813.3,1.50921043]
[1645232735449,4.5663852,2814.7,2813.2,1.09226415]
[1645232735450,1.10955806,2814.2,2813.2,1.09226415]
[1645232735648,1.99847806,2814.2,2813.2,1.09226415]
[1645232735850,1.99847806,2814.2,2813.2,1.39226415]
[1645232736049,1.10955806,2814.2,2813.2,11.98226415]
[1645232736251,3.67,2815.0,2813.3,12.39924771]
[1645232736252,0.1776,2814.9,2813.3,12.39924771]
[1645232736449,3.67,2815.0,2813.3,10.89]
[1645232736649,0.88879,2814.6,2813.4,1.0]
[1645232736850,1.77763,2814.6,2814.0,0.00223358]
[1645232737101,0.8888502,2814.5,2814.0,0.00223358]
[1645232737300,1.13987233,2814.4,2814.0,0.00223358]
[1645232737700,0.8888502,2814.5,2813.6,0.88883]
[1645232737902,0.1776,2814.8,2813.7,3.5]
[1645232738104,0.00472463,2814.9,2814.1,0.00223354]
[1645232738900,0.00472463,2814.9,2814.1,3.5]
[1645232739101,0.00472463,2814.9,2814.4,0.97793451]
[1645232739302,0.00472463,2814.9,2814.4,0.97883012]
[1645232739502,0.00472463,2814.9,2814.4,1.57883012]
[1645232739901,0.00472463,2814.9,2814.5,10.89]
[1645232740108,0.17,2815.0,2814.5,10.89]
[1645232740304,0.00472463,2814.9,2814.6,1.3]
[1645232740505,0.17,2815.0,2814.6,1.6]
[1645232740950,0.17,2815.0,2814.9,0.99762785]
[1645232741461,0.88848,2815.8,2815.0,5.86007782]
[1645232741462,0.00472463,2815.8,2815.0,5.86007782]
[1645232741657,0.00472463,2815.8,2815.2,15.89]
[1645232741859,0.0022296,2816.0,2815.3,8.6774]
[1645232742053,0.0022296,2816.0,2815.4,10.89]
[1645232742253,0.0022296,2816.0,2815.6,11.19]
[1645232742451,0.0022296,2816.0,2815.7,10.89]
[1645232742655,0.0119325,2816.3,2815.8,10.89]
[1645232742851,0.0119325,2816.3,2816.0,10.89]
[1645232743257,0.0119325,2816.3,2816.1,12.19]
[1645232743452,0.0119325,2816.3,2816.1,11.49]
[1645232743650,0.0119325,2816.3,2816.2,1.96900191]
[1645232747701,0.0119325,2816.3,2816.2,5.46900191]
[1645232747909,0.0119325,2816.3,2816.2,1.96900191]
[1645232748356,0.0119325,2816.3,2816.2,0.96900191]
[1645232748953,0.0119325,2816.3,2816.2,2.26900191]
[1645232749455,0.0119325,2816.3,2816.2,0.91900191]
[1645232750255,0.0119325,2816.3,2816.1,0.88801]
[1645232751257,0.01414532,2816.3,2816.1,0.88801]
[1645232752302,0.0119325,2816.3,2816.1,0.88801]
[1645232752505,0.01414532,2816.3,2816.1,0.88801]
[1645232752700,0.01414532,2816.3,2816.1,1.18801]
[1645232753304,0.01414532,2816.3,2816.1,0.88801]
[1645232753503,0.0119325,2816.3,2816.1,0.88801]
[1645232753704,0.01414532,2816.3,2816.1,0.88801]
[1645232754705,0.0119325,2816.3,2816.1,0.88801]
[1645232754905,0.01416388,2816.3,2816.1,0.88801]
[1645232755769,0.0119325,2816.3,2816.1,0.88801]
[1645232755965,0.01416388,2816.3,2816.1,0.88801]
[1645232756966,0.0119325,2816.3,2816.1,0.88801]
[1645232757369,0.01416388,2816.3,2816.2,3.5]
[1645232757768,0.01416388,2816.3,2816.2,15.39]
[1645232757966,0.01416388,2816.3,2816.2,4.5]
[1645232758168,0.0119325,2816.3,2816.2,4.5]
[1645232759603,0.02046467,2816.8,2816.2,1.0]
[1645232759805,0.03032967,2816.8,2816.4,0.88804]
[1645232760206,0.03032967,2816.8,2816.2,1.77607]
[1645232760512,0.03032967,2816.8,2816.4,1.18805638]
[1645232760808,0.009865,2816.8,2816.4,1.18805638]
[1645232761111,0.009865,2816.8,2816.4,0.88808]
[1645232762107,0.009865,2816.8,2816.7,0.86529132]
[1645232762507,0.05022307,2816.8,2816.7,0.86529132]
[1645232763107,0.05022307,2816.8,2816.1,3.5]
[1645232763353,0.05022307,2816.8,2816.6,0.00222911]
[1645232763354,0.00022307,2816.8,2816.6,0.00222911]
[1645232764154,0.00022307,2816.8,2816.1,3.5]
[1645232764353,0.00022307,2816.8,2816.4,0.88804]
[1645232764552,0.00022307,2816.8,2816.6,0.00222913]
[1645232764752,0.00022307,2816.8,2816.6,1.00222913]
[1645232765352,0.00022307,2816.8,2816.6,1.0]
[1645232765754,0.00022307,2816.8,2816.6,1.00222703]
[1645232766555,0.00022307,2816.8,2816.6,1.0]
[1645232766856,0.00022307,2816.8,2816.6,1.00222703]
[1645232767903,0.00022307,2816.8,2816.6,1.0]
[1645232768104,0.00022307,2816.8,2816.6,1.00222703]
[1645232768702,7.44717443,2817.4,2816.7,1.76054266]
[1645232768906,0.34229722,2817.6,2816.7,1.76054266]
[1645232769100,0.95,2817.6,2816.7,1.76054266]
[1645232769305,0.67005101,2817.9,2816.8,16.39]
[1645232769505,0.9280305,2818.0,2816.9,12.96553]
[1645232769506,0.205074,2818.0,2816.9,12.96553]
[1645232769703,0.027674,2818.0,2817.0,14.39]
[1645232769903,0.027674,2818.0,2817.2,0.88761]
[1645232770101,0.027674,2818.0,2817.2,2.07516]
[1645232770305,0.027674,2818.0,2816.8,0.4774]
[1645232770306,0.027674,2818.0,2816.6,2.0]
[1645232770504,0.0013162,2817.7,2816.7,1.77562]
[1645232770953,0.9980394,2817.7,2816.8,0.99044084]
[1645232771157,1.7771844,2817.7,2816.8,0.99044084]
[1645232771359,1.7758682,2817.7,2816.8,0.99044084]
[1645232771562,1.7758682,2817.7,2816.9,0.88786]
[1645232771759,0.0013162,2817.4,2816.9,0.88786]
[1645232772157,0.0013162,2817.4,2816.8,0.99044084]
[1645232772558,2.92853993,2817.7,2816.8,0.99044084]
[1645232772762,1.92853993,2817.7,2816.8,0.99044084]
[1645232772961,0.00240656,2817.2,2816.9,0.88786]
[1645232773759,0.016,2817.7,2816.9,0.88786]
[1645232773960,0.016,2817.7,2816.9,1.88786]
[1645232774166,0.016,2817.7,2816.9,1.0]
[1645232774167,0.00240658,2817.2,2816.9,1.0]
[1645232775000,3.8,2817.5,2816.9,1.0]
[1645232775001,3.9774,2817.5,2816.9,1.0]
[1645232775198,0.88808,2817.2,2816.9,1.0]
[1645232775400,4.3882076,2817.1,2816.9,1.0]
[1645232775598,3.5,2817.0,2816.9,1.0]
[1645232775797,4.5952164,2817.0,2816.9,1.0]
[1645232776600,2.8716664,2817.0,2816.9,1.0]
[1645232776806,6.3716664,2817.0,2816.9,1.0]
[1645232777003,3.5,2816.9,2816.7,0.00240697]
[1645232777203,0.8883329,2816.7,2815.5,2.7963]
[1645232777403,5.75434,2816.6,2815.2,2.1599]
[1645232777701,1.11351527,2816.1,2815.2,3.23813879]
[1645232778751,1.11351527,2816.1,2815.4,0.88832]
[1645232778955,5.2768609,2816.4,2815.4,0.88832]
[1645232779150,0.8884909,2816.4,2815.4,0.88832]
[1645232779358,0.8884909,2816.4,2815.6,1.3]
[1645232779553,0.88828,2816.5,2815.6,1.0]
[1645232779852,3.6774,2816.7,2815.6,2.18828]
[1645232780053,3.6774,2816.7,2816.2,0.86918908]
[1645232780054,0.1774,2816.7,2816.2,0.86918908]
[1645232780254,0.00131566,2816.9,2816.2,0.86918908]
[1645232781052,3.5,2817.0,2816.2,0.86918908]
[1645232781254,0.00240656,2816.9,2816.4,0.00240701]
[1645232782309,0.1774,2817.5,2816.2,1.46918908]
[1645232782310,1.0777565,2817.5,2816.2,0.86918908]
[1645232782501,0.0024066,2816.9,2816.5,0.00240697]
[1645232783601,1.15486443,2817.3,2816.3,1.0]
[1645232783803,0.00240663,2816.9,2816.6,0.00240695]
[1645232784205,0.90276313,2816.9,2816.6,0.00240695]
[1645232784405,1.20276313,2816.9,2816.6,0.00240695]
[1645232784603,1.2003565,2816.8,2815.7,1.5081957]
[1645232784802,3.5,2816.7,2815.7,1.5081957]
[1645232785001,0.88836,2816.3,2815.6,1.0]
[1645232785204,1.0777565,2816.7,2815.6,1.0]
[1645232785404,0.00240665,2816.9,2815.7,1.50825643]
[1645232785405,0.90276315,2816.9,2815.7,1.50825643]
[1645232785601,0.00240665,2816.9,2815.7,1.50825643]
[1645232785855,0.9003565,2816.8,2815.6,2.77634]
[1645232786057,0.88821,2816.7,2815.7,1.50822816]
[1645232786263,1.7886257,2816.6,2816.2,0.00240711]
[1645232786454,1.09174492,2816.3,2816.2,0.00240711]
[1645232787059,0.9003565,2816.5,2815.7,2.50822816]
[1645232787259,1.52888455,2816.8,2816.1,0.00240713]
[1645232787260,0.9003565,2816.8,2816.1,0.00240713]
[1645232787457,0.90276292,2816.9,2816.1,0.00240713]
[1645232787658,0.00240642,2816.9,2816.1,0.00240713]
[1645232788058,1.94189482,2816.9,2816.1,0.00240713]
[1645232788258,1.0391319,2816.9,2816.1,2.39635816]
[1645232788457,1.9394884,2816.9,2816.1,0.88813]
[1645232788659,1.94189493,2816.9,2816.4,0.00240703]
[1645232788859,1.04153843,2816.9,2816.4,0.00240703]
[1645232789058,1.94189493,2816.9,2816.4,0.00240703]
[1645232789506,1.94189493,2816.9,2815.8,2.95356]
[1645232789507,0.9003565,2816.8,2815.8,2.95356]
[1645232789702,0.9003565,2816.7,2816.5,0.00240697]
[1645232790100,0.9003565,2816.6,2816.5,0.00240697]
[1645232790698,1.85097319,2816.4,2815.7,1.50828232]
[1645232790900,0.88831,2816.4,2815.7,1.50828232]
[1645232791101,0.90155716,2816.6,2815.7,1.50828232]
[1645232792098,0.90155716,2816.6,2816.0,0.00240717]
[1645232792302,1.83007619,2816.7,2816.0,0.00240717]
[1645232792500,0.90155716,2816.6,2816.1,0.88812]
[1645232792699,0.90155716,2816.6,2816.0,0.00240717]
[1645232792901,0.90155716,2816.5,2816.0,0.00240717]
[1645232793101,0.90155716,2816.5,2815.6,1.0]
[1645232793102,3.5,2816.4,2815.6,1.0]
[1645232793359,4.70155716,2816.4,2816.2,0.00240711]
[1645232793553,4.40155716,2816.3,2816.2,0.00240711]
[1645232793954,4.6774,2816.3,2816.2,0.00240711]
[1645232794254,5.57891381,2816.3,2815.6,1.0]
[1645232794454,0.90151381,2816.2,2815.6,1.0]
[1645232794654,0.8884406,2816.0,2815.6,1.0]
[1645232794858,0.8884,2816.1,2815.6,1.0]
[1645232795653,0.8884,2816.1,2815.7,0.00240728]
[1645232795853,1.86595766,2816.1,2815.7,0.00240728]
[1645232796653,1.86595766,2816.1,2815.6,1.0]
[1645232796854,1.86595766,2816.1,2815.8,0.00233504]
[1645232797898,1.86595766,2816.1,2815.6,1.0]
[1645232798100,1.86595766,2816.1,2815.8,0.00233502]
[1645232798307,3.05441766,2816.1,2815.8,0.00233502]
[1645232798500,4.83145496,2816.1,2815.8,0.00233502]
[1645232798701,0.8885111,2816.0,2815.8,0.00233502]
[1645232799201,0.8885111,2816.0,2815.6,1.0]
[1645232799400,0.8885111,2816.0,2815.8,0.00233504]
[1645232800303,1.7770111,2816.0,2815.6,1.0]
[1645232800502,0.88851,2815.9,2815.8,0.00221383]
[1645232801349,0.88851,2815.9,2815.8,0.00120117]
[1645232801551,0.88851,2815.9,2815.6,1.0]
[1645232801751,0.88851,2815.9,2815.7,0.00221385]
[1645232802857,0.88851,2815.9,2815.6,1.0]
[1645232803452,4.38851,2815.9,2815.6,1.0]
[1645232803653,0.88851,2815.9,2815.6,1.0]
[1645232804052,0.88851,2815.9,2815.6,1.00091544]
[1645232805197,0.88851,2815.9,2815.6,1.0]
[1645232805400,0.88851,2815.9,2815.6,1.00223161]
[1645232806400,0.88851,2815.9,2815.6,1.0]
[1645232806600,1.48851,2815.9,2815.6,1.00223161]
[1645232806799,1.18851,2815.9,2815.6,1.00223161]
[1645232807202,0.88851,2815.9,2815.6,1.00223161]
[1645232807401,0.88851,2815.9,2815.6,1.0]
[1645232807800,0.88851,2815.9,2815.6,1.0022291]
[1645232808764,0.88851,2815.9,2815.6,1.0]
[1645232808962,0.88851,2815.9,2815.6,1.0022291]
[1645232809965,0.88851,2815.9,2815.6,1.0]
[1645232810167,0.88851,2815.9,2815.6,1.0022291]
[1645232811165,0.88851,2815.9,2815.6,1.0]
[1645232811366,0.88851,2815.9,2815.6,1.00222947]
[1645232812198,0.88851,2815.9,2815.6,1.0]
[1645232812598,0.88851,2815.9,2815.6,1.00222947]
[1645232812800,0.8885111,2816.0,2815.6,1.00222947]
[1645232813402,0.97755766,2816.1,2815.6,1.0]
[1645232813403,1.86602766,2816.1,2815.6,1.0]
[1645232813600,0.97755766,2816.1,2815.6,1.0]
[1645232813800,0.97755766,2816.1,2815.7,0.00222945]
[1645232814504,1.86597766,2816.1,2815.7,0.00222945]
[1645232814702,0.8883864,2816.2,2815.6,1.0]
[1645232814902,0.8883864,2816.2,2815.8,0.00222937]
[1645232815102,0.8883293,2816.3,2815.8,0.00222937]
[1645232815754,4.63229381,2816.6,2815.8,0.00222937]
[1645232815755,2.85559381,2816.6,2815.8,0.00222937]
[1645232815952,1.01268275,2816.5,2815.6,2.16841757]
[1645232816153,1.01268275,2816.5,2815.9,0.00222933]
[1645232816353,0.8882707,2816.5,2815.9,0.00222933]
[1645232817053,0.8882707,2816.5,2815.6,2.16841757]
[1645232817252,1.7766007,2816.5,2815.6,2.16841757]
[1645232817451,1.7766007,2816.5,2815.9,0.0022294]
[1645232817854,0.6,2816.4,2815.9,0.0022294]
[1645232818053,0.8883637,2816.3,2815.9,0.0022294]
[1645232818258,0.8883637,2816.3,2815.6,2.16841757]
[1645232818457,0.6,2816.4,2815.9,0.00222937]
[1645232818654,1.78984381,2816.5,2815.9,0.00222937]
[1645232818855,0.88833,2816.5,2815.9,0.00222937]
[1645232819256,1.7766226,2816.5,2815.9,0.00222937]
[1645232819508,1.7766226,2816.5,2815.6,1.0]
[1645232819699,1.7766226,2816.5,2815.9,0.0022294]
[1645232820301,2.67813641,2816.5,2815.9,0.0022294]
[1645232820704,2.67813641,2816.5,2815.6,1.0]
[1645232820705,0.90151381,2816.4,2815.6,1.0]
[1645232820904,0.90151381,2816.4,2815.9,0.0022294]
[1645232821102,0.8883465,2816.3,2815.9,0.0022294]
[1645232821904,1.7266965,2816.3,2815.6,1.0]
[1645232822102,0.8383465,2816.3,2815.9,0.00222935]
[1645232823103,0.8383465,2816.3,2815.6,1.0]
[1645232823384,0.8383465,2816.3,2815.9,0.00222935]
[1645232823580,1.7266965,2816.3,2815.9,0.00222935]
[1645232824276,0.90151381,2816.5,2815.7,1.50825267]
[1645232824277,0.8882734,2816.5,2815.7,1.50825267]
[1645232824676,0.88832,2816.4,2815.9,0.00222935]
[1645232825275,0.8883554,2816.3,2815.9,0.00222935]
[1645232825477,0.8883554,2816.3,2815.6,1.0]
[1645232825878,0.8883554,2816.3,2815.9,0.00222937]
[1645232826281,0.88839,2816.2,2815.9,0.00222937]
[1645232826478,0.8883554,2816.3,2815.9,0.00222937]
[1645232826678,0.8883554,2816.3,2815.6,1.0]
[1645232827002,0.8882772,2816.5,2815.9,0.00222933]
[1645232827201,2.00034877,2816.6,2815.9,0.00222933]
[1645232827202,1.82294877,2816.6,2815.9,0.00222933]
[1645232827402,2.12294877,2816.6,2815.9,0.00222933]
[1645232827600,0.90151381,2816.5,2815.9,0.00222933]
[1645232827800,2.42294877,2816.6,2815.7,1.50831057]
[1645232828001,0.8882948,2816.5,2815.7,1.50831057]
[1645232828203,1.78980861,2816.5,2815.9,0.0022294]
[1645232829004,2.67812861,2816.5,2815.9,0.0022294]
[1645232829203,2.67812861,2816.5,2815.6,1.0]
[1645232829507,0.8883435,2816.3,2815.9,0.0022294]
[1645232830105,1.78985731,2816.3,2815.9,0.0022294]
[1645232830305,0.8883435,2816.3,2815.6,1.0]
[1645232830502,0.90151381,2816.4,2815.9,0.00222935]
[1645232830750,1.78979001,2816.5,2815.9,0.00222935]
[1645232831250,0.90151381,2816.4,2815.9,0.00222935]
[1645232831545,1.78979001,2816.5,2815.6,1.0]
[1645232831746,1.78983381,2816.4,2815.9,0.0022294]
[1645232831945,0.88832,2816.4,2815.9,0.0022294]
[1645232832751,0.8883401,2816.3,2815.6,1.0]
[1645232832948,0.8883401,2816.3,2815.9,0.00222937]
[1645232832949,0.88839,2816.2,2815.9,0.00222937]
[1645232833952,0.88839,2816.2,2815.6,1.0]
[1645232834152,0.83941497,2816.1,2815.9,0.00222933]
[1645232835201,0.88844,2816.0,2815.6,1.0]
[1645232835402,0.88844,2816.0,2815.9,0.00222933]
[1645232836000,0.68627,2816.0,2815.6,0.95690933]
[1645232837203,0.83941497,2816.1,2815.6,0.95690933]
[1645232837800,0.83941497,2816.1,2815.7,0.00091413]
[1645232838001,1.78984851,2816.3,2815.7,0.00091413]
[1645232838648,2.67820851,2816.3,2815.7,0.00091413]
[1645232838847,2.67820851,2816.3,2815.6,0.95690933]
[1645232839062,4.38842,2816.2,2815.8,0.00223109]
[1645232839251,2.67838451,2816.2,2815.8,0.00223109]
[1645232839654,2.67838451,2816.2,2815.6,0.80752042]
[1645232839851,1.78996451,2816.2,2815.6,0.80752042]
[1645232840150,1.78996451,2816.2,2815.7,0.00091242]
[1645232840750,1.17270678,2815.9,2815.6,0.77254284]
[1645232840953,1.78996451,2816.2,2815.6,0.77254284]
[1645232841556,0.90151381,2816.1,2815.6,0.77254284]
[1645232841752,0.90151381,2816.2,2815.6,0.77254284]
[1645232845004,0.90151381,2816.2,2815.6,0.77495024]
[1645232845609,1.20151381,2816.2,2815.6,0.77495024]
[1645232845852,0.90151381,2816.2,2815.6,0.77495024]
[1645232846052,0.90151381,2816.2,2815.6,0.77254284]
[1645232846258,0.90151381,2816.2,2815.6,0.77495024]
[1645232846858,0.90151381,2816.2,2815.7,3.5]
[1645232847061,1.39088471,2817.0,2815.8,7.00826988]
[1645232847259,0.1774,2817.6,2816.2,0.01227952]
[1645232847453,3.2587,2817.7,2816.2,0.01227952]
[1645232847454,0.00240666,2816.5,2816.3,1.50826988]
[1645232847654,0.00240666,2816.5,2816.4,0.83999326]
[1645232847853,0.00240666,2816.5,2816.4,3.34826314]
[1645232848060,0.00240666,2816.5,2816.4,4.53609314]
[1645232848255,0.00240666,2816.5,2816.4,4.23609314]
[1645232848455,0.036089,2817.3,2816.4,4.23609314]
[1645232848456,0.95035926,2817.8,2816.4,7.19946314]
[1645232848755,0.0013189,2816.8,2816.5,1.50826988]
[1645232848954,0.0013189,2816.8,2816.5,1.80826988]
[1645232849156,0.0013189,2816.8,2816.6,1.50826988]
[1645232849358,0.0013189,2816.8,2816.7,1.50826988]
[1645232849599,0.88794,2817.7,2816.5,5.57577]
[1645232849804,0.00240671,2816.8,2816.6,1.507726]
[1645232849998,0.00240671,2816.8,2816.7,0.88794]
[1645232850798,1.48794,2817.7,2816.7,0.88794]
[1645232851001,0.00240669,2816.9,2816.7,0.88794]
[1645232852005,0.7774,2817.7,2816.7,0.88794]
[1645232852204,0.00240667,2816.9,2816.7,0.88794]
[1645232853250,1.66534,2817.7,2816.7,0.88794]
[1645232854452,1.48794,2817.7,2816.7,0.88794]
[1645232855756,2.83825396,2817.8,2816.9,1.1572811]
[1645232855757,0.00240357,2817.3,2816.9,1.1572811]
[1645232856055,0.00240357,2817.3,2817.0,4.38773]
[1645232856856,0.027674,2818.0,2817.1,13.6653]
[1645232857108,0.027674,2818.0,2817.2,14.39129728]
[1645232857308,0.027674,2818.0,2817.4,0.3]
[1645232857500,0.027674,2818.0,2817.4,0.6]
[1645232857702,0.043674,2818.0,2817.4,0.6]
[1645232858001,0.043674,2818.0,2817.7,1.10506568]
[1645232858401,0.043674,2818.0,2817.7,1.99253568]
[1645232858605,0.043674,2818.0,2817.8,0.88744]
[1645232859007,0.043674,2818.0,2817.9,3.5]
[1645232859008,0.031174,2818.0,2817.9,3.5]
[1645232859213,1.923966,2819.1,2818.0,5.8]
[1645232859214,0.58778434,2819.1,2818.0,5.8]
[1645232859407,0.48778434,2819.1,2818.2,0.88732]
[1645232860008,0.48778434,2819.1,2818.4,0.97058597]
[1645232860206,0.48778434,2819.1,2818.1,1.77464]
[1645232860207,0.78778434,2819.1,2818.1,1.77464]
[1645232860761,0.00240198,2818.9,2818.1,1.77464]
[1645232860960,0.00240198,2818.9,2818.0,1.77484]
[1645232861161,0.00240198,2818.9,2817.9,0.88755]
[1645232861363,1.10626572,2818.7,2817.9,0.88755]
[1645232861560,1.10626572,2818.7,2817.7,1.04742986]
[1645232861763,1.00626572,2818.7,2817.7,1.04742986]
[1645232862061,0.00240212,2818.5,2817.7,1.04742986]
[1645232862762,1.89388572,2818.7,2817.7,1.04742986]
[1645232862963,0.00240224,2818.2,2817.6,1.0]
[1645232863462,0.00240224,2818.2,2817.6,1.77505]
[1645232863664,0.00240224,2818.2,2817.7,3.5]
[1645232864063,0.48778434,2819.1,2817.7,3.5]
[1645232864264,0.0024023,2818.1,2817.7,3.5]
[1645232864803,0.0024023,2818.1,2817.8,1.99952304]
[1645232865008,0.0024023,2818.1,2817.9,3.5]
[1645232865202,0.48778434,2819.1,2817.9,3.5]
[1645232865407,0.0024023,2818.1,2817.9,3.5]
[1645232866006,0.0024023,2818.1,2817.8,1.11203304]
[1645232866205,0.0024023,2818.1,2817.9,1.77484]
[1645232866405,2.90222627,2819.1,2818.0,3.5]
[1645232866606,0.48778434,2819.1,2818.1,0.88745]
[1645232866807,0.04563677,2818.5,2818.0,3.8]
[1645232867007,0.04563677,2818.5,2818.2,3.5]
[1645232867205,0.48342111,2819.1,2818.2,6.2747]
[1645232867409,0.48342111,2819.1,2818.3,3.5]
[1645232867612,0.48342111,2819.1,2818.6,0.93764734]
[1645232867807,0.48342111,2819.1,2818.2,1.7747]
[1645232868262,0.48342111,2819.1,2818.3,1.18738]
[1645232868466,0.48342111,2819.1,2818.4,2.02747]
[1645232868662,0.48342111,2819.1,2818.5,0.3]
[1645232868865,0.48342111,2819.1,2818.4,2.77447]
[1645232869065,0.00130066,2818.8,2818.4,1.77447]
[1645232869265,0.00130066,2818.8,2818.7,0.87079717]
[1645232869465,0.43472177,2819.1,2818.7,1.75809717]
[1645232871466,0.43472177,2819.1,2818.7,0.8873]
[1645232871668,0.43472177,2819.1,2818.7,0.88731]
[1645232871866,0.43472177,2819.1,2818.4,1.77447]
[1645232872104,0.43472177,2819.1,2818.4,2.77447]
[1645232872302,0.43472177,2819.1,2818.4,1.77447]
[1645232872603,0.43472177,2819.1,2818.7,1.06865804]
[1645232872909,0.43472177,2819.1,2818.8,0.88723]
[1645232873904,0.43712564,2819.1,2818.8,0.88723]
[1645232874107,0.43712564,2819.1,2818.7,3.44300804]
[1645232874305,0.43712564,2819.1,2818.8,1.0]
[1645232874806,0.43472177,2819.1,2818.8,1.0]
[1645232875004,0.43712564,2819.1,2818.8,1.0]
[1645232875407,0.43712564,2819.1,2818.7,3.44300804]
[1645232875408,0.43712564,2819.1,2818.7,3.14300804]
[1645232875855,0.43712564,2819.1,2818.8,1.0]
[1645232876055,0.43472177,2819.1,2818.8,1.0]
[1645232876255,0.43472177,2819.1,2818.7,3.14300804]
[1645232876256,0.00240389,2819.0,2818.7,6.64300804]
[1645232876855,0.00240389,2819.0,2818.8,2.0]
[1645232877257,0.43472177,2819.1,2818.8,2.0]
[1645232877460,0.00467751,2819.5,2818.9,9.0]
[1645232877660,0.00961411,2819.5,2819.1,1.7738324]
[1645232877856,0.00961411,2819.5,2819.2,12.07686]
[1645232878258,3.43,2820.0,2819.4,21.40298821]
[1645232878259,0.01778336,2820.0,2819.4,21.40298821]
[1645232878460,0.002,2821.0,2820.4,1.10471633]
[1645232878657,0.002,2821.0,2820.0,1.7735]
[1645232879057,0.002,2821.0,2819.6,2.8011]
[1645232879257,7.49,2820.9,2819.7,1.0]